bitfinex/quotes_BTCUSD_20250226
["timestamp","ask_amount","ask_price","bid_price","bid_amount"]
[1740538240863,0.0004238,89001.0,89000.0,0.32188538]
[1740538241245,0.0004238,89001.0,89000.0,0.31888538]
[1740538241647,0.0004238,89001.0,89000.0,0.32188538]
[1740538242919,0.0004238,89001.0,89000.0,0.65752623]
[1740538243263,0.168482,89031.0,89022.0,0.0489]
[1740538243649,0.168479,89032.0,89023.0,0.03038208]
[1740538243796,0.16848,89031.0,89023.0,0.00076208]
[1740538244015,0.168484,89030.0,89024.0,0.05216301]
[1740538244224,0.01966387,89031.0,89024.0,0.05216301]
[1740538244557,0.004,89031.0,89025.0,0.00076145]
[1740538244855,0.002,89031.0,89025.0,0.00076145]
[1740538245076,0.3,89035.0,89025.0,0.0788]
[1740538245266,0.168475,89034.0,89026.0,0.01022413]
[1740538245410,0.168475,89034.0,89026.0,0.02165531]
[1740538245804,0.168476,89033.0,89026.0,0.02165531]
[1740538246017,0.168476,89033.0,89027.0,0.05429272]
[1740538246335,0.168476,89033.0,89028.0,0.01142567]
[1740538246903,0.01965382,89034.0,89028.0,0.01142567]
[1740538247176,0.224628,89036.0,89029.0,0.00076019]
[1740538247479,0.224628,89036.0,89026.0,0.01022413]
[1740538247789,0.168481,89031.0,89028.0,0.007]
[1740538248206,0.168481,89031.0,89029.0,0.01142291]
[1740538248408,0.168482,89030.0,89029.0,0.01142291]
[1740538248603,0.168482,89030.0,89029.0,0.0266993]
[1740538248837,0.168482,89030.0,89029.0,0.01527639]
[1740538249041,0.16848,89031.0,89029.0,0.01527639]
[1740538249609,0.02008378,89034.0,89031.0,0.0755]
[1740538249810,0.168464,89040.0,89031.0,0.0755]
[1740538250019,0.3,89042.0,89032.0,0.03734037]
[1740538250409,0.3,89050.0,89032.0,0.02592574]
[1740538250768,0.168465,89039.0,89033.0,0.01141187]
[1740538250943,0.468465,89040.0,89033.0,0.01141187]
[1740538251108,0.168466,89039.0,89032.0,0.02592574]
[1740538251312,0.3,89040.0,89033.0,0.06279538]
[1740538251313,0.3,89037.0,89033.0,0.06279538]
[1740538251939,0.045,89057.0,89033.0,0.06279538]
[1740538252159,0.2246,89047.0,89040.0,0.0767]
[1740538252334,0.168455,89045.0,89040.0,0.0767]
[1740538252554,0.168455,89045.0,89041.0,0.0113898]
[1740538252955,0.168452,89047.0,89041.0,0.0113898]
[1740538253152,0.32047549,89048.0,89041.0,0.0113898]
[1740538253485,0.168451,89047.0,89042.0,0.04811798]
[1740538253621,0.32047549,89048.0,89043.0,0.01138428]
[1740538253820,0.168455,89045.0,89043.0,0.01138428]
[1740538254019,0.32047549,89048.0,89044.0,0.248056]
[1740538254317,0.02047549,89048.0,89045.0,0.17983277]
[1740538254506,0.02047549,89048.0,89045.0,0.01137877]
[1740538254823,0.224567,89061.0,89045.0,0.01137877]
[1740538254824,0.168428,89059.0,89045.0,0.01137877]
[1740538254954,0.00889525,89067.0,89046.0,0.05881998]
[1740538254955,0.0004239,89067.0,89046.0,0.05881998]
[1740538255154,0.0004239,89067.0,89047.0,0.0819]
[1740538255418,0.0004239,89067.0,89057.0,0.168431]
[1740538255615,0.0004239,89067.0,89059.0,0.0819]
[1740538255999,0.0004239,89067.0,89066.0,0.168414]
[1740538256162,0.0004239,89067.0,89060.0,0.0195274]
[1740538256163,0.0004239,89067.0,89064.0,0.168418]
[1740538256359,0.02021043,89067.0,89066.0,0.01132086]
[1740538256564,0.02021043,89067.0,89065.0,0.01132361]
[1740538256770,0.02021043,89067.0,89064.0,0.168416]
[1740538256771,0.02021043,89067.0,89066.0,0.04371066]
[1740538256970,0.02021043,89067.0,89066.0,0.0117377]
[1740538257124,0.02021043,89067.0,89066.0,0.1801517]
[1740538257325,0.02021043,89067.0,89066.0,0.0117377]
[1740538257667,0.02021043,89067.0,89066.0,0.2579517]
[1740538257868,0.02021043,89067.0,89066.0,0.16905387]
[1740538258024,0.02021043,89067.0,89066.0,0.2639517]
[1740538258224,0.02021043,89067.0,89066.0,0.0955377]
[1740538258450,0.02021043,89067.0,89066.0,0.0925377]
[1740538258830,0.02021043,89067.0,89066.0,0.0965377]
[1740538259236,0.02021043,89067.0,89066.0,0.0935377]
[1740538259443,0.02021043,89067.0,89066.0,0.15199877]
[1740538259660,0.02021043,89067.0,89066.0,0.0975377]
[1740538260230,0.02021043,89067.0,89066.0,0.0935377]
[1740538260738,0.02021043,89067.0,89066.0,0.0985377]
[1740538261757,0.02021043,89067.0,89066.0,0.0207377]
[1740538261758,0.19027624,89067.0,89066.0,0.0207377]
[1740538261963,0.18862243,89067.0,89066.0,0.0207377]
[1740538262096,0.18862243,89067.0,89066.0,0.00941684]
[1740538262903,0.18862243,89067.0,89066.0,0.00441684]
[1740538263343,0.18862243,89067.0,89066.0,0.00041684]
[1740538263344,0.48862243,89067.0,89066.0,0.00041684]
[1740538263598,0.49027624,89067.0,89066.0,0.00041684]
[1740538264044,0.49027624,89067.0,89030.0,0.0765]
[1740538264045,0.16848,89031.0,89030.0,0.0765]
[1740538264263,0.16848,89031.0,89030.0,0.08606635]
[1740538264447,0.224632,89035.0,89030.0,0.08606635]
[1740538264681,0.00165381,89048.0,89031.0,0.01504606]
[1740538264855,0.00165381,89048.0,89032.0,0.00956083]
[1740538265184,0.168476,89033.0,89032.0,0.00956083]
[1740538265521,0.168482,89030.0,89029.0,0.0004179]
[1740538265721,0.3,89030.0,89013.0,0.0815]
[1740538265860,0.00968,89036.0,89013.0,0.0815]
[1740538265861,0.168512,89014.0,89013.0,0.0815]
[1740538266482,0.19331953,89014.0,89013.0,0.0815]
[1740538267167,0.02480753,89014.0,89013.0,0.0885]
[1740538267367,0.233784,89059.0,89013.0,0.15365363]
[1740538267565,0.3,89031.0,89013.0,0.15365363]
[1740538267767,0.168482,89030.0,89022.0,0.168495]
[1740538267981,0.168493,89025.0,89023.0,0.0168495]
[1740538268180,0.168493,89024.0,89023.0,0.0168495]
[1740538268387,0.3,89036.0,89013.0,0.15365363]
[1740538268587,0.168512,89014.0,89013.0,0.15365363]
[1740538268842,0.168512,89014.0,89013.0,0.0955]
[1740538269056,0.168512,89014.0,89013.0,0.0885]
[1740538269381,0.168512,89014.0,89013.0,0.0893468]
[1740538269583,0.168512,89014.0,89013.0,0.0903468]
[1740538269796,0.224664,89022.0,89013.0,0.09842341]
[1740538270037,0.02560866,89025.0,89013.0,0.09842341]
[1740538270246,0.168512,89014.0,89013.0,0.09942341]
[1740538270447,0.00193619,89035.0,89013.0,0.09942341]
[1740538270810,0.168499,89021.0,89014.0,0.00998427]
[1740538271034,0.168504,89019.0,89014.0,0.00998427]
[1740538271279,0.3,89033.0,89014.0,0.00998427]
[1740538272011,0.168496,89023.0,89015.0,0.16851]
[1740538272192,0.0261541,89035.0,89021.0,0.168497]
[1740538272193,0.224638,89032.0,89021.0,0.168497]
[1740538272396,0.168483,89030.0,89017.0,0.224676]
[1740538272554,0.168484,89030.0,89022.0,0.00958842]
[1740538272761,0.0261541,89035.0,89025.0,0.16849]
[1740538272960,0.168481,89031.0,89023.0,0.168494]
[1740538273160,0.224638,89033.0,89026.0,0.00957738]
[1740538273362,0.01454085,89052.0,89015.0,0.00157264]
[1740538273586,0.01454085,89052.0,89014.0,0.00998427]
[1740538273587,0.00833649,89048.0,89027.0,0.00957462]
[1740538273940,0.3,89042.0,89028.0,0.00957186]
[1740538274088,0.3,89035.0,89023.0,0.003]
[1740538274345,0.168456,89044.0,89035.0,0.168471]
[1740538274481,0.224585,89053.0,89036.0,0.00954979]
[1740538274685,0.3293,89054.0,89037.0,0.224625]
[1740538274897,0.003,89048.0,89043.0,0.168457]
[1740538275097,0.003,89048.0,89044.0,0.00952773]
[1740538275302,0.168459,89042.0,89041.0,0.0785]
[1740538275509,0.168456,89044.0,89041.0,0.095886]
[1740538275706,0.008,89048.0,89042.0,0.224613]
[1740538275943,0.008,89048.0,89043.0,0.17798748]
[1740538276121,0.008,89048.0,89044.0,0.02643375]
[1740538276323,0.008,89048.0,89045.0,0.00952497]
[1740538276962,0.005,89048.0,89045.0,0.00952497]
[1740538277137,0.168452,89046.0,89045.0,0.00952497]
[1740538277338,0.168457,89043.0,89042.0,0.00041933]
[1740538277825,0.005,89048.0,89042.0,0.00041933]
[1740538278083,0.005,89048.0,89043.0,0.168456]
[1740538278367,0.3,89063.0,89043.0,0.00695891]
[1740538278605,0.168448,89049.0,89045.0,0.001]
[1740538278834,0.168448,89049.0,89046.0,0.02553392]
[1740538279068,0.168448,89049.0,89046.0,0.03248686]
[1740538279311,0.16845,89047.0,89046.0,0.03248686]
[1740538279539,0.16845,89047.0,89046.0,0.00695294]
[1740538279670,0.16845,89047.0,89042.0,0.00341933]
[1740538280007,0.02690812,89056.0,89043.0,0.00695891]
[1740538280390,0.02690812,89056.0,89042.0,0.00041933]
[1740538280391,0.168453,89046.0,89042.0,0.00041933]
[1740538280746,0.168453,89046.0,89043.0,0.03169744]
[1740538281923,0.168447,89049.0,89043.0,0.03169744]
[1740538282121,0.3004238,89069.0,89043.0,0.03169744]
[1740538282346,0.0004234,89056.0,89043.0,0.03369744]
[1740538282544,0.168453,89046.0,89043.0,0.03369744]
[1740538282865,0.168453,89046.0,89044.0,0.02810848]
[1740538283043,0.168446,89050.0,89044.0,0.02810848]
[1740538283219,0.224589,89052.0,89044.0,0.02810848]
[1740538283429,0.224582,89054.0,89045.0,0.00695493]
[1740538283637,0.0004234,89056.0,89046.0,0.168452]
[1740538283638,0.02590688,89056.0,89046.0,0.168452]
[1740538283838,0.168444,89050.0,89047.0,0.03107455]
[1740538284047,0.168444,89050.0,89047.0,0.0380255]
[1740538284245,0.168442,89051.0,89047.0,0.0380255]
[1740538284654,0.168438,89054.0,89047.0,0.0380255]
[1740538284851,0.16844,89053.0,89048.0,0.05100068]
[1740538285095,0.16844,89053.0,89049.0,0.00694697]
[1740538285941,0.16844,89052.0,89049.0,0.00694697]
[1740538286140,0.02890688,89056.0,89049.0,0.00694697]
[1740538286364,0.168442,89051.0,89050.0,0.00579477]
[1740538286533,0.468444,89050.0,89049.0,0.00951116]
[1740538286683,0.468446,89049.0,89048.0,0.003]
[1740538287110,0.47045206,89049.0,89048.0,0.003]
[1740538287302,0.468446,89049.0,89048.0,0.003]
[1740538287528,0.3,89049.0,89048.0,0.003]
[1740538287732,0.02590688,89056.0,89048.0,0.01793883]
[1740538287930,0.02590688,89056.0,89048.0,0.01493883]
[1740538288172,0.168446,89049.0,89048.0,0.01493883]
[1740538288325,0.169446,89049.0,89048.0,0.01493883]
[1740538288528,0.001,89049.0,89048.0,0.17672993]
[1740538288731,0.001,89049.0,89048.0,0.00828193]
[1740538289078,0.224577,89056.0,89048.0,0.01593883]
[1740538289379,0.224577,89056.0,89046.0,0.0794]
[1740538289380,0.02456791,89057.0,89049.0,0.00881013]
[1740538289790,0.224572,89059.0,89050.0,0.00665293]
[1740538289995,0.0004238,89071.0,89050.0,0.00665293]
[1740538289996,0.3004238,89069.0,89053.0,0.168438]
[1740538290231,0.168434,89056.0,89054.0,0.04084911]
[1740538290347,0.0004238,89069.0,89054.0,0.00664497]
[1740538290550,0.3,89063.0,89054.0,0.168436]
[1740538290776,0.02488427,89063.0,89050.0,0.168444]
[1740538290971,0.224562,89062.0,89055.0,0.00664298]
[1740538291187,0.168442,89052.0,89050.0,0.00882101]
[1740538291391,0.168442,89052.0,89051.0,0.01010311]
[1740538291592,0.168442,89052.0,89051.0,0.01675405]
[1740538292412,0.168442,89052.0,89051.0,0.01010311]
[1740538293236,0.168442,89052.0,89051.0,0.01310311]
[1740538293449,0.32473111,89063.0,89051.0,0.01310311]
[1740538293659,0.168433,89056.0,89052.0,0.00925031]
[1740538293834,0.224578,89056.0,89052.0,0.00925031]
[1740538294039,0.224564,89062.0,89053.0,0.00664696]
[1740538294239,0.168437,89054.0,89053.0,0.00664696]
[1740538294554,0.168433,89056.0,89053.0,0.00982973]
[1740538294771,0.224562,89062.0,89053.0,0.00982973]
[1740538294982,0.168435,89055.0,89054.0,0.00664497]
[1740538295180,0.168437,89054.0,89053.0,0.00982973]
[1740538295375,0.168437,89054.0,89053.0,0.01182973]
[1740538295548,0.168437,89054.0,89053.0,0.01382973]
[1740538295949,0.0004234,89057.0,89053.0,0.01182973]
[1740538296153,0.168434,89056.0,89054.0,0.003]
[1740538296355,0.168435,89055.0,89054.0,0.003]
[1740538296611,0.168437,89054.0,89053.0,0.01182973]
[1740538296828,0.0004234,89057.0,89053.0,0.01482973]
[1740538296976,0.0004234,89057.0,89054.0,0.01832737]
[1740538297171,0.0004234,89057.0,89054.0,0.002]
[1740538297399,0.0004234,89057.0,89055.0,0.00739497]
[1740538297573,0.0004234,89057.0,89054.0,0.002]
[1740538297777,0.0004234,89057.0,89056.0,0.00739267]
[1740538298176,0.1688544,89057.0,89056.0,0.00739267]
[1740538298784,0.168437,89054.0,89053.0,0.01382973]
[1740538299081,0.1688544,89057.0,89056.0,0.004]
[1740538299584,0.0004234,89057.0,89056.0,0.004]
[1740538299794,0.0004234,89057.0,89056.0,0.02222757]
[1740538299999,0.1688544,89057.0,89056.0,0.01822757]
[1740538300344,0.168433,89056.0,89053.0,0.00982973]
[1740538300651,0.0004234,89057.0,89056.0,0.168433]
[1740538300971,0.0004234,89057.0,89056.0,0.22499752]
[1740538301197,0.0004234,89057.0,89056.0,0.22342567]
[1740538301418,0.0004234,89057.0,89056.0,0.22642567]
[1740538301653,0.0004234,89057.0,89056.0,0.22342567]
[1740538301882,0.0004234,89057.0,89056.0,0.32539424]
[1740538302105,0.0004234,89057.0,89056.0,0.32939424]
[1740538302316,0.0004234,89057.0,89056.0,0.32139424]
[1740538302522,0.0004234,89057.0,89056.0,0.32839424]
[1740538302821,0.0004234,89057.0,89056.0,0.32139424]
[1740538303153,0.0004234,89057.0,89056.0,0.32839424]
[1740538303584,0.0004234,89057.0,89056.0,0.33539424]
[1740538304008,0.0004234,89057.0,89056.0,0.40979424]
[1740538304338,0.0004234,89057.0,89056.0,0.41679424]
[1740538304516,0.0004234,89057.0,89056.0,0.74089424]
[1740538304844,0.0004234,89057.0,89056.0,0.73389424]
[1740538305275,0.0004234,89057.0,89056.0,0.74089424]
[1740538305659,0.0004234,89057.0,89056.0,0.73389424]
[1740538305789,0.0004234,89057.0,89056.0,0.74089424]
[1740538306232,0.0004234,89057.0,89056.0,0.75384692]
[1740538306430,0.0004234,89057.0,89056.0,0.76084692]
[1740538306671,0.0004234,89057.0,89056.0,0.74931114]
[1740538306852,0.0004234,89057.0,89056.0,0.75631114]
[1740538307054,0.0004234,89057.0,89056.0,0.76331114]
[1740538307271,0.0004234,89057.0,89056.0,0.74335846]
[1740538307913,5e-07,89070.0,89069.0,0.168408]
[1740538308118,5e-07,89070.0,89069.0,0.66728657]
[1740538308311,5e-07,89070.0,89069.0,0.66571511]
[1740538308538,5e-07,89070.0,89069.0,0.96571511]
[1740538308845,0.0004238,89081.0,89070.0,0.168406]
[1740538308993,0.0004238,89081.0,89070.0,0.29417741]
[1740538309204,0.0004238,89081.0,89070.0,0.30756618]
[1740538309430,0.0004238,89081.0,89070.0,0.70756618]
[1740538309649,0.0004238,89081.0,89070.0,0.82142314]
[1740538310085,0.0004238,89081.0,89080.0,0.250187]
[1740538310970,0.0004238,89081.0,89080.0,0.0818]
[1740538311177,0.0004238,89081.0,89080.0,0.0888]
[1740538311556,0.1688098,89081.0,89080.0,0.0888]
[1740538311741,0.1688098,89081.0,89080.0,0.02646381]
[1740538311944,0.168393,89077.0,89076.0,0.0778]
[1740538312629,0.0004238,89081.0,89080.0,0.007]
[1740538312830,0.3933248,89081.0,89080.0,0.007]
[1740538313068,0.168404,89071.0,89070.0,0.08051933]
[1740538313460,0.168404,89071.0,89070.0,0.08812238]
[1740538313838,0.168404,89071.0,89070.0,0.08051933]
[1740538314065,0.168404,89071.0,89070.0,0.08812238]
[1740538314562,0.168404,89071.0,89070.0,0.00641933]
[1740538315115,0.168404,89071.0,89070.0,0.00041933]
[1740538315956,0.16858989,89071.0,89070.0,0.00041933]
[1740538316169,0.17125428,89071.0,89070.0,0.00741933]
[1740538316397,0.17025428,89071.0,89070.0,0.00041933]
[1740538316586,0.17025428,89071.0,89070.0,0.00841933]
[1740538317024,0.17025428,89071.0,89070.0,0.00041933]
[1740538317191,0.17025428,89071.0,89070.0,0.00441933]
[1740538318058,0.17025428,89071.0,89070.0,0.00741933]
[1740538318768,0.17025428,89071.0,89070.0,0.00341933]
[1740538319146,0.17225428,89071.0,89070.0,0.00041933]
[1740538319342,0.17267828,89071.0,89070.0,0.00041933]
[1740538320579,0.173828,89071.0,89070.0,0.00041933]
[1740538320712,0.170828,89071.0,89070.0,0.00041933]
[1740538321094,0.472828,89071.0,89070.0,0.00041933]
[1740538321653,0.470828,89071.0,89070.0,0.00041933]
[1740538322043,0.469828,89071.0,89070.0,0.00041933]
[1740538322160,0.471828,89071.0,89070.0,0.00041933]
[1740538322775,0.472828,89071.0,89070.0,0.00041933]
[1740538322978,0.469828,89071.0,89070.0,0.00041933]
[1740538323610,0.470828,89071.0,89070.0,0.00041933]
[1740538324021,0.468828,89071.0,89070.0,0.00041933]
[1740538324829,0.168404,89071.0,89070.0,0.00041933]
[1740538325032,0.168404,89071.0,89070.0,0.00141933]
[1740538325239,0.168404,89071.0,89070.0,0.00041933]
[1740538326127,0.15256102,89071.0,89070.0,0.00041933]
[1740538326653,0.15356102,89071.0,89070.0,0.00041933]
[1740538327146,0.15256102,89071.0,89070.0,0.00041933]
[1740538327492,0.15356102,89071.0,89070.0,0.00041933]
[1740538328100,0.15456102,89071.0,89070.0,0.00041933]
[1740538330241,0.15356102,89071.0,89070.0,0.00041933]
[1740538330437,0.15756102,89071.0,89070.0,0.00041933]
[1740538331152,0.45256102,89071.0,89070.0,0.00041933]
[1740538331369,0.45756102,89071.0,89070.0,0.00041933]
[1740538331668,0.45256102,89071.0,89070.0,0.00041933]
[1740538331846,0.45256102,89071.0,89070.0,0.00126733]
[1740538332049,0.45698502,89071.0,89070.0,0.00126733]
[1740538332645,0.45298502,89071.0,89070.0,0.00126733]
[1740538333049,0.45798502,89071.0,89070.0,0.00126733]
[1740538333255,0.46298502,89071.0,89070.0,0.00126733]
[1740538333785,0.45798502,89071.0,89070.0,0.00126733]
[1740538333978,0.46398502,89071.0,89070.0,0.00126733]
[1740538334412,0.168465,89039.0,89026.0,0.3241]
[1740538334563,0.168463,89040.0,89038.0,0.07761979]
[1740538334768,0.3,89054.0,89039.0,0.00844556]
[1740538334981,0.3,89054.0,89040.0,0.01349653]
[1740538335185,0.3,89054.0,89041.0,0.00843942]
[1740538335572,0.3,89054.0,89041.0,0.00743942]
[1740538335768,0.168424,89061.0,89042.0,0.07743917]
[1740538335968,0.224568,89060.0,89048.0,0.168447]
[1740538336196,0.3,89059.0,89049.0,0.00768339]
[1740538336519,0.224577,89056.0,89049.0,0.00768339]
[1740538336727,0.000424,89071.0,89051.0,0.30609]
[1740538336897,0.3,89068.0,89051.0,0.0815]
[1740538337093,0.3,89068.0,89052.0,0.00767511]
[1740538337317,0.3,89060.0,89052.0,0.17611511]
[1740538337499,0.3,89061.0,89053.0,0.19419951]
[1740538337676,0.168418,89064.0,89054.0,0.168436]
[1740538337882,0.168399,89074.0,89065.0,0.168416]
[1740538338085,0.224522,89078.0,89064.0,0.168418]
[1740538338284,0.007,89068.0,89066.0,0.00763651]
[1740538338556,0.007,89068.0,89067.0,0.02321995]
[1740538338921,0.007,89068.0,89067.0,0.02121995]
[1740538339125,0.17541,89068.0,89067.0,0.00041979]
[1740538339328,0.17241,89068.0,89067.0,0.00041979]
[1740538339526,0.004,89068.0,89067.0,0.00041979]
[1740538339728,0.004,89068.0,89067.0,0.08301979]
[1740538340188,0.16841,89068.0,89067.0,0.08301979]
[1740538340316,0.16841,89068.0,89067.0,0.09142177]
[1740538340522,0.168409,89069.0,89067.0,0.09142177]
[1740538341145,0.168409,89069.0,89067.0,0.09242177]
[1740538341375,0.168405,89071.0,89067.0,0.09242177]
[1740538341578,0.168405,89071.0,89068.0,0.007631]
[1740538341739,0.168405,89071.0,89069.0,0.02684738]
[1740538341939,0.168405,89071.0,89070.0,0.00762549]
[1740538342343,0.224532,89074.0,89070.0,0.00762549]
[1740538342555,0.168403,89073.0,89070.0,0.00762549]
[1740538342751,0.3,89076.0,89070.0,0.224542]
[1740538343014,0.224504,89085.0,89071.0,0.04200385]
[1740538343215,0.168384,89083.0,89073.0,0.168399]
[1740538343419,0.2249178,89089.0,89072.0,0.0465]
[1740538343584,0.001,89074.0,89072.0,0.0465]
[1740538344677,0.468394,89077.0,89072.0,0.0465]
[1740538344874,0.468394,89077.0,89073.0,0.05317288]
[1740538345074,0.002,89076.0,89073.0,0.05317288]
[1740538345481,0.002,89076.0,89075.0,0.168397]
[1740538345923,0.004,89085.0,89074.0,0.251699]
[1740538346169,0.16838,89084.0,89074.0,0.251699]
[1740538346370,0.16838,89084.0,89075.0,0.168396]
[1740538347350,0.5634,89086.0,89074.0,0.0873]
[1740538347543,0.5634,89086.0,89079.0,0.168388]
[1740538347760,0.5634,89086.0,89081.0,0.167384]
[1740538347959,0.5634,89086.0,89082.0,0.18936475]
[1740538348155,0.5634,89086.0,89082.0,0.02098175]
[1740538348360,0.5634,89086.0,89083.0,0.083]
[1740538348537,0.5634,89086.0,89083.0,0.251381]
[1740538348743,0.5634,89086.0,89084.0,0.0075869]
[1740538348941,0.5634,89086.0,89085.0,0.21882447]
[1740538349147,0.5634,89086.0,89085.0,0.168378]
[1740538349350,0.5634,89086.0,89085.0,0.17596215]
[1740538349992,0.5634,89086.0,89085.0,0.00758415]
[1740538350187,0.5634,89086.0,89083.0,0.310507]
[1740538350385,0.5634,89086.0,89085.0,0.171378]
[1740538350587,0.5634,89086.0,89085.0,0.17896215]
[1740538351145,0.5634,89086.0,89085.0,0.01058415]
[1740538353026,0.731776,89086.0,89085.0,0.01358415]
[1740538353428,0.5634,89086.0,89085.0,0.006]
[1740538353574,0.5634,89086.0,89085.0,0.01699818]
[1740538353771,0.731776,89086.0,89085.0,0.01699818]
[1740538354376,0.5634,89086.0,89085.0,0.01699818]
[1740538354783,0.731776,89086.0,89085.0,0.01699818]
[1740538355536,0.5634,89086.0,89085.0,0.01699818]
[1740538355942,0.5634,89086.0,89085.0,0.02458233]
[1740538356306,0.5638239,89086.0,89085.0,0.02458233]
[1740538358024,0.5638239,89086.0,89085.0,0.01699818]
[1740538358223,0.5638239,89086.0,89085.0,0.02458233]
[1740538361618,0.5638239,89086.0,89085.0,0.01699818]
[1740538361822,0.5638239,89086.0,89085.0,0.02458233]
[1740538362314,0.5638239,89086.0,89085.0,0.19296033]
[1740538362424,0.5638239,89086.0,89085.0,0.19092593]
[1740538365592,0.5638239,89086.0,89085.0,0.19296032]
[1740538365988,0.5638239,89086.0,89085.0,0.27106032]
[1740538371354,0.5638239,89086.0,89085.0,0.27161376]
[1740538372520,0.5638239,89086.0,89085.0,0.26957937]
[1740538372722,0.5638239,89086.0,89085.0,0.27161376]
[1740538372924,0.5638239,89086.0,89085.0,0.26957937]
[1740538373077,0.5638239,89086.0,89085.0,0.31927937]
[1740538373501,0.5638239,89086.0,89085.0,0.32131376]
[1740538374402,0.5638239,89086.0,89085.0,0.31831376]
[1740538374599,0.5638239,89086.0,89085.0,0.31531376]
[1740538374765,0.5638239,89086.0,89085.0,0.32231376]
[1740538374964,0.5638239,89086.0,89085.0,0.32931376]
[1740538375937,0.5638239,89086.0,89085.0,0.3492916]
[1740538377672,0.5638239,89086.0,89085.0,0.34725721]
[1740538377906,0.5638239,89086.0,89085.0,0.36179806]
[1740538378128,0.5638239,89086.0,89085.0,0.36383245]
[1740538378576,0.5638239,89086.0,89085.0,0.68793245]
[1740538378799,0.5638239,89086.0,89085.0,0.68589806]
[1740538379023,0.5638239,89086.0,89085.0,0.68793245]
[1740538379975,0.5638239,89086.0,89085.0,0.66795461]
[1740538380946,0.2844753,89086.0,89085.0,0.66795461]
[1740538381806,0.2844753,89086.0,89085.0,0.48503576]
[1740538381967,0.4528513,89086.0,89085.0,0.42433758]
[1740538382160,0.2844753,89086.0,89085.0,0.34623758]
[1740538382511,0.2844753,89086.0,89085.0,0.51461558]
[1740538382712,0.2844753,89086.0,89085.0,0.61921454]
[1740538382916,0.0004239,89086.0,89085.0,0.61221454]
[1740538383198,0.0004239,89086.0,89085.0,0.45083654]
[1740538383352,0.0004239,89086.0,89085.0,0.34623758]
[1740538383785,0.0004239,89086.0,89085.0,0.33923758]
[1740538384089,0.0004239,89086.0,89085.0,0.34623758]
[1740538384501,0.0004239,89086.0,89085.0,0.02213758]
[1740538384698,0.1687999,89086.0,89085.0,0.02213758]
[1740538385336,0.1687999,89086.0,89085.0,0.014]
[1740538385875,0.0004239,89086.0,89085.0,0.03346129]
[1740538386088,0.1687999,89086.0,89085.0,0.01513759]
[1740538386441,0.1687999,89086.0,89085.0,0.007]
[1740538386846,0.168384,89082.0,89081.0,0.000848]
[1740538387244,0.168384,89082.0,89081.0,0.01263615]
[1740538387677,0.168384,89082.0,89081.0,0.000848]
[1740538388279,0.452384,89082.0,89081.0,0.000848]
[1740538388484,0.453384,89082.0,89081.0,0.007848]
[1740538388642,0.452384,89082.0,89081.0,0.000848]
[1740538389165,0.503084,89082.0,89081.0,0.006848]
[1740538389525,0.502084,89082.0,89081.0,0.000848]
[1740538389934,0.502084,89082.0,89081.0,0.005848]
[1740538390159,0.502084,89082.0,89081.0,0.008848]
[1740538390374,0.502084,89082.0,89081.0,0.003848]
[1740538390579,0.503084,89082.0,89081.0,0.000848]
[1740538390988,0.502084,89082.0,89081.0,0.000848]
[1740538391522,0.284,89082.0,89081.0,0.000848]
[1740538391933,0.454384,89082.0,89081.0,0.000848]
[1740538392503,0.453384,89082.0,89081.0,0.000848]
[1740538392708,0.453384,89082.0,89081.0,0.002848]
[1740538393255,0.452384,89082.0,89081.0,0.002848]
[1740538394051,0.452384,89082.0,89081.0,0.004848]
[1740538395630,0.284,89082.0,89081.0,0.004848]
[1740538396088,0.284,89082.0,89081.0,0.01299787]
[1740538396296,0.284,89082.0,89081.0,0.02298749]
[1740538397011,0.452384,89082.0,89081.0,0.02298749]
[1740538397231,0.452384,89082.0,89081.0,0.004848]
[1740538398012,0.284,89082.0,89081.0,0.004848]
[1740538398585,0.284,89082.0,89081.0,0.087048]
[1740538398983,0.284,89082.0,89081.0,0.09519787]
[1740538400379,0.284,89082.0,89081.0,0.26358387]
[1740538400596,0.284,89082.0,89081.0,0.33484616]
[1740538401233,0.05759897,89082.0,89081.0,0.33484616]
[1740538401435,0.05759897,89082.0,89081.0,0.33284616]
[1740538401573,0.05759897,89082.0,89081.0,0.33084616]
[1740538401776,0.05859897,89082.0,89081.0,0.33784616]
[1740538402032,0.05959897,89082.0,89081.0,0.34484616]
[1740538403048,0.22798297,89082.0,89081.0,0.09426016]
[1740538403249,0.22798297,89082.0,89081.0,0.02299787]
[1740538403453,0.22798297,89082.0,89081.0,0.014848]
[1740538403772,0.05959897,89082.0,89081.0,0.014848]
[1740538404178,0.05959897,89082.0,89081.0,0.0331721]
[1740538404314,0.002,89082.0,89081.0,0.04132197]
[1740538404509,0.002,89082.0,89081.0,0.02299787]
[1740538404710,0.170384,89082.0,89081.0,0.014848]
[1740538409600,0.227984,89082.0,89081.0,0.014848]
[1740538410409,0.168384,89082.0,89081.0,0.014848]
[1740538410985,0.168384,89082.0,89081.0,0.000848]
[1740538411362,0.168384,89082.0,89081.0,0.005848]
[1740538411683,0.168384,89082.0,89081.0,0.000848]
[1740538412188,0.168384,89082.0,89081.0,0.003848]
[1740538412801,0.168384,89082.0,89081.0,0.004848]
[1740538413358,0.168384,89082.0,89081.0,0.001848]
[1740538415001,0.168384,89082.0,89081.0,0.003848]
[1740538415430,0.168384,89082.0,89081.0,0.001848]
[1740538415980,0.168382,89083.0,89081.0,0.002848]
[1740538416159,0.168384,89082.0,89081.0,0.002848]
[1740538416509,0.0004239,89086.0,89081.0,0.002848]
[1740538416712,0.0004239,89086.0,89082.0,0.0775]
[1740538416915,0.0004239,89086.0,89083.0,0.0080348]
[1740538417483,0.3,89097.0,89084.0,0.00814065]
[1740538417659,0.168376,89087.0,89084.0,0.00814065]
[1740538417869,0.3,89096.0,89083.0,0.0080348]
[1740538417998,0.168374,89088.0,89083.0,0.0080348]
[1740538418210,0.168374,89088.0,89084.0,0.03371793]
[1740538418673,0.3,89096.0,89084.0,0.03371793]
[1740538418972,0.001,89087.0,89084.0,0.03371793]
[1740538419420,0.524488,89092.0,89084.0,0.03371793]
[1740538419629,0.168357,89096.0,89085.0,0.02884907]
[1740538419829,0.002,89088.0,89085.0,0.02884907]
[1740538420499,0.002,89088.0,89084.0,0.01114065]
[1740538420672,0.002,89088.0,89083.0,0.0080348]